bitfinex/quotes_ETHUSD_20260202
["timestamp","ask_amount","ask_price","bid_price","bid_amount"]
[1770008364837,13.62711474,2246.0,2245.1,0.935]
[1770008365243,13.62711474,2246.0,2244.5,0.001]
[1770008365442,13.62711474,2245.8,2244.6,0.935]
[1770008366537,13.62711474,2245.8,2244.5,0.001]
[1770008366731,13.62711474,2245.8,2244.5,0.936]
[1770008367937,13.62711474,2245.8,2244.7,11.71090971]
[1770008368657,13.62711474,2245.8,2244.5,0.936]
[1770008368960,13.62711474,2245.6,2244.5,0.936]
[1770008369350,13.62711474,2245.6,2244.6,0.935]
[1770008371731,1.49898262,2245.7,2244.6,7.88852958]
[1770008372232,15.12609736,2245.7,2244.6,7.88852958]
[1770008373153,15.12609736,2245.7,2244.6,6.95352958]
[1770008373332,15.12609736,2245.7,2244.7,1.63045296]
[1770008374258,15.12609736,2245.7,2244.7,1.63145296]
[1770008374438,0.0011,2245.5,2244.7,1.63145296]
[1770008375455,0.0011,2245.5,2244.7,8.58498254]
[1770008375758,0.0011,2245.5,2244.7,20.29589225]
[1770008375933,0.0011,2245.5,2244.8,2.02958923]
[1770008377832,0.0011,2245.5,2244.7,8.58498254]
[1770008378435,0.0011,2245.5,2244.8,0.935]
[1770008380747,13.71922443,2245.5,2244.8,0.935]
[1770008381847,13.71922443,2245.5,2244.7,0.001]
[1770008382165,13.71922443,2245.5,2244.8,0.935]
[1770008382465,1.37192244,2245.4,2244.8,0.935]
[1770008383538,13.71922443,2245.5,2244.8,0.935]
[1770008387466,13.71922443,2245.5,2245.0,0.001]
[1770008387966,0.0011,2245.3,2245.0,0.001]
[1770008390185,12.65057126,2245.3,2245.0,0.001]
[1770008390491,12.65057126,2245.3,2244.8,0.935]
[1770008390675,13.91573839,2245.3,2244.8,0.935]
[1770008391081,13.91573839,2245.3,2244.7,0.001]
[1770008391594,13.91573839,2245.3,2244.3,0.01488433]
[1770008397696,13.91573839,2245.3,2244.3,7.90441391]
[1770008397993,12.65057126,2245.3,2244.3,0.01488433]
[1770008400681,12.64947126,2245.2,2244.3,0.01488433]
[1770008400878,12.64947126,2245.0,2243.6,0.935]
[1770008401467,12.64947126,2245.0,2243.7,7.90441391]
[1770008401670,12.64947126,2245.0,2243.8,8.83941391]
[1770008401870,12.64947126,2245.0,2243.9,2.15351796]
[1770008402099,12.64947126,2245.0,2244.5,0.001]
[1770008403071,0.0011,2245.1,2244.5,0.001]
[1770008404374,12.65057126,2245.3,2244.6,7.90441391]
[1770008404375,0.0011,2245.3,2244.6,7.90441391]
[1770008404576,0.0011,2246.2,2245.1,8.13578421]
[1770008404775,0.0011,2246.2,2245.2,9.65079233]
[1770008405091,12.65057126,2246.2,2245.2,1.74857842]
[1770008405277,12.65057126,2246.2,2244.7,0.1024]
[1770008405278,12.65057126,2246.2,2244.7,0.2335703]
[1770008405478,12.64947126,2246.0,2244.5,12.69676569]
[1770008405695,12.64947126,2246.0,2244.6,0.935]
[1770008406090,12.64947126,2246.0,2244.5,0.001]
[1770008406293,12.64947126,2246.0,2244.5,0.936]
[1770008406610,12.64947126,2245.8,2244.5,0.001]
[1770008406795,12.64947126,2245.8,2244.5,0.936]
[1770008406971,13.58447126,2245.8,2244.5,0.001]
[1770008407571,12.64947126,2245.6,2244.5,0.001]
[1770008408713,13.8634274,2245.4,2244.3,0.001]
[1770008409002,13.8634274,2245.2,2244.3,0.001]
[1770008412881,13.8634274,2245.2,2243.4,0.2335703]
[1770008414085,13.8634274,2245.2,2243.8,7.90421391]
[1770008414402,13.8634274,2245.2,2243.7,13.63794052]
[1770008414599,13.8634274,2245.0,2243.8,1.36379405]
[1770008417089,13.8634274,2245.0,2243.6,0.001]
[1770008420510,13.8634274,2244.8,2243.6,0.001]
[1770008420822,14.7984274,2244.8,2243.6,0.001]
[1770008421590,13.8634274,2244.7,2243.6,0.001]
[1770008421915,13.8634274,2244.6,2243.6,0.001]
[1770008422085,15.24977014,2244.5,2243.6,0.001]
[1770008422288,0.935,2244.8,2243.6,7.90521391]
[1770008422289,14.7984274,2244.8,2243.6,7.90521391]
[1770008422794,14.7984274,2244.8,2243.7,21.54215443]
[1770008423023,14.7984274,2244.8,2243.7,0.935]
[1770008423682,14.7984274,2244.8,2243.6,0.001]
[1770008425290,13.8634274,2244.5,2243.4,0.001]
[1770008425507,13.8634274,2244.3,2243.4,0.001]
[1770008425708,13.8634274,2244.1,2243.4,0.001]
[1770008426906,15.72017014,2244.4,2243.4,0.001]
[1770008427907,1.85674274,2244.4,2243.4,0.001]
[1770008428090,14.7984274,2244.5,2243.4,0.001]
[1770008429121,14.7984274,2244.5,2243.8,0.001]
[1770008430225,13.8634274,2244.5,2243.8,0.001]
[1770008434594,0.0011,2244.6,2243.8,0.001]
[1770008435626,0.0011,2244.6,2243.8,7.90621391]
[1770008435811,0.0011,2244.6,2243.9,0.79062139]
[1770008436012,4.704,2245.7,2243.9,0.79062139]
[1770008436013,13.8634274,2245.4,2244.1,7.90411391]
[1770008436205,13.8634274,2245.7,2244.1,7.90411391]
[1770008437006,13.8634274,2245.7,2244.3,7.90411391]
[1770008437204,13.8645274,2245.8,2244.6,7.90411391]
[1770008437408,13.8645274,2245.8,2244.4,2.24041139]
[1770008437636,14.7995274,2245.8,2244.1,0.935]
[1770008437937,14.7995274,2245.8,2243.8,0.1034]
[1770008437938,14.7995274,2245.8,2243.8,0.001]
[1770008438100,13.58993628,2245.6,2243.9,1.72562139]
[1770008438301,2.13472042,2245.8,2243.9,1.72562139]
[1770008438302,13.58993628,2245.4,2243.9,1.72562139]
[1770008438498,13.58993628,2245.4,2244.0,14.5]
[1770008438800,13.58993628,2245.2,2244.1,2.41297353]
[1770008439296,13.58993628,2245.7,2244.2,7.90411391]
[1770008439710,13.58993628,2245.7,2244.3,0.935]
[1770008439914,13.58993628,2245.7,2244.1,2.41297353]
[1770008440114,13.58993628,2245.5,2244.0,0.935]
[1770008440523,0.9361,2245.8,2244.0,0.935]
[1770008440524,13.58993628,2245.3,2244.0,0.935]
[1770008440816,14.52493628,2245.3,2243.9,0.935]
[1770008441316,14.52493628,2245.3,2243.8,0.001]
[1770008441717,14.52493628,2245.3,2243.8,0.936]
[1770008441915,13.58993628,2245.1,2243.8,0.936]
[1770008443421,13.58993628,2245.1,2243.8,8.84011391]
[1770008443720,13.58993628,2245.4,2244.1,7.90511391]
[1770008443920,13.58993628,2245.4,2244.1,0.001]
[1770008444441,13.58993628,2245.4,2244.1,0.936]
[1770008444628,13.58993628,2245.2,2244.1,2.4797]
[1770008444950,13.58993628,2245.2,2244.1,0.001]
[1770008449419,0.00490131,2244.3,2244.1,0.001]
[1770008449616,13.58993628,2245.2,2244.1,0.001]
[1770008453351,1.35910363,2245.3,2244.2,7.90411391]
[1770008453526,13.51488918,2245.5,2244.2,7.90411391]
[1770008454134,0.0011,2245.5,2244.6,7.90411391]
[1770008454330,0.0011,2245.8,2244.7,8.83911391]
[1770008455149,0.0011,2245.8,2244.8,22.40301391]
[1770008455447,0.0011,2245.8,2245.0,0.2335703]
[1770008455652,0.0011,2246.0,2245.0,10.39914263]
[1770008455850,0.0011,2246.0,2245.1,7.90081391]
[1770008456022,0.0011,2246.2,2245.4,0.2335703]
[1770008456231,0.0011,2246.2,2245.5,0.935]
[1770008456754,13.51488918,2246.2,2245.5,0.935]
[1770008456964,14.8652781,2246.1,2245.5,0.935]
[1770008457747,0.0011,2246.2,2245.5,0.935]
[1770008458155,0.0011,2245.7,2245.5,0.935]
[1770008458334,0.0011,2246.2,2245.5,0.935]
[1770008460530,0.0011,2246.4,2245.5,8.83361391]
[1770008460755,0.0011,2246.4,2245.0,2.26365842]
[1770008460756,13.51488918,2246.4,2245.0,2.26365842]
[1770008460939,13.51378918,2246.2,2245.1,2.3343752]
[1770008461262,13.51378918,2246.2,2244.6,2.13285783]
[1770008461565,13.51378918,2246.0,2244.6,2.13285783]
[1770008461862,1.35148892,2246.3,2244.6,2.13285783]
[1770008461863,13.51378918,2245.8,2244.6,2.13285783]
[1770008467333,0.935,2246.0,2244.3,0.001]
[1770008467334,13.51378918,2245.6,2244.3,0.001]
[1770008467530,13.51378918,2245.4,2244.3,0.001]
[1770008467761,14.44878918,2245.4,2244.3,0.001]
[1770008469561,12.6723983,2245.2,2244.1,0.001]
[1770008469769,12.6723983,2245.0,2244.1,0.001]
[1770008469983,12.6723983,2244.8,2243.9,0.001]
[1770008472661,2.29807339,2244.9,2243.9,0.001]
[1770008472863,12.6723983,2245.0,2243.9,0.001]
[1770008473060,13.6073983,2245.3,2243.9,0.001]
[1770008473662,0.0011,2245.6,2244.3,0.2335703]
[1770008473663,12.6734983,2245.6,2244.3,0.2335703]
[1770008473843,12.6734983,2245.6,2244.3,10.26694204]
[1770008473844,0.0011,2245.6,2244.3,10.26694204]
[1770008474051,12.6734983,2245.6,2244.3,10.03337174]
[1770008474249,13.5419492,2245.5,2244.4,1.00333717]
[1770008474572,13.5419492,2245.5,2244.2,0.935]
[1770008474773,13.5419492,2245.5,2244.0,0.001]
[1770008474774,14.4769492,2245.5,2244.0,0.001]
[1770008474973,12.6723983,2245.3,2244.0,0.001]
[1770008475572,12.6723983,2245.1,2244.0,0.001]
[1770008475750,12.6723983,2244.9,2244.0,0.001]
[1770008476147,2.29798539,2245.0,2244.0,0.001]
[1770008476148,0.935,2245.0,2244.0,0.001]
[1770008476457,0.0011,2245.6,2244.0,10.26794204]
[1770008477258,0.0011,2245.6,2244.2,0.2335703]
[1770008477463,0.0011,2245.6,2244.4,0.2335703]
[1770008477663,0.0011,2245.6,2244.4,1.1201942]
[1770008477862,12.6734983,2245.6,2244.4,1.1201942]
[1770008478673,12.6734983,2245.6,2244.3,0.935]
[1770008480479,0.0011,2245.6,2244.4,0.2335703]
[1770008480680,0.0011,2245.8,2244.9,11.73009361]
[1770008480881,12.6723983,2246.2,2245.1,0.2335703]
[1770008481050,0.0011,2246.4,2245.1,0.2335703]
[1770008481252,0.0011,2246.4,2245.1,2.52655386]
[1770008481788,12.6734983,2246.4,2245.1,2.29298356]
[1770008482290,0.0011,2246.4,2245.2,0.2335703]
[1770008482476,0.0011,2246.4,2245.4,0.2335703]
[1770008483198,0.0011,2246.3,2245.4,0.2335703]
[1770008483495,0.0011,2246.3,2245.4,1.42993669]
[1770008483863,0.0011,2246.6,2245.7,11.73009361]
[1770008484072,0.0011,2246.6,2245.8,0.935]
[1770008484802,0.0011,2246.8,2245.9,0.1024]
[1770008485010,12.6723983,2247.6,2246.0,0.2335703]
[1770008485164,1.4006922,2247.5,2246.0,0.7306724]
[1770008485370,14.0730905,2247.5,2246.0,0.7306724]
[1770008485705,12.6723983,2247.5,2246.3,11.73009361]
[1770008486026,12.6723983,2247.5,2246.4,0.935]
[1770008487270,0.39507072,2247.7,2246.4,0.935]
[1770008487469,0.39507072,2247.7,2246.1,0.1024]
[1770008487470,13.06746902,2247.7,2246.1,0.1024]
[1770008487670,12.6723983,2247.5,2246.1,0.934]
[1770008487887,12.6723983,2247.3,2245.7,11.73009361]
[1770008488085,12.6723983,2247.3,2245.8,0.934]
[1770008488904,12.6723983,2247.3,2245.7,0.934]
[1770008489210,12.6723983,2247.3,2245.4,1.19636639]
[1770008489382,12.6723983,2247.1,2245.2,0.934]
[1770008489916,12.6723983,2247.1,2245.0,0.934]
[1770008490073,13.78496791,2247.1,2244.6,13.84715085]
[1770008490274,12.6723983,2246.7,2244.6,2.11705724]
[1770008490472,12.6723983,2246.1,2244.6,2.11705724]
[1770008490712,12.6723983,2245.9,2244.5,0.001]
[1770008490908,1.26723983,2246.0,2244.5,0.001]
[1770008490909,12.6723983,2245.7,2244.5,0.001]
[1770008493913,1.5420929,2245.9,2244.7,0.2335703]
[1770008494908,14.2144912,2245.9,2244.7,0.2335703]
[1770008495109,1.5420929,2245.9,2244.7,0.2335703]
[1770008495412,1.5420929,2245.9,2244.7,0.2345703]
[1770008496605,1.5420929,2245.9,2244.7,0.001]
[1770008496781,1.5420929,2245.9,2244.8,0.2335703]
[1770008497278,1.5420929,2245.9,2244.7,1.37000936]
[1770008497911,1.5420929,2245.9,2244.7,1.26760936]
[1770008498110,15.49664711,2245.9,2244.8,0.935]
[1770008498315,13.95455421,2245.7,2244.8,0.935]
[1770008498521,1.49754639,2245.7,2244.8,0.935]
[1770008498814,1.02090964,2245.8,2244.9,0.2335703]
[1770008500929,1.02090964,2245.8,2244.7,0.001]
[1770008501109,14.97546385,2245.8,2244.7,0.001]
[1770008501422,14.97546385,2245.8,2244.7,0.936]
[1770008501599,15.4521006,2245.7,2244.7,0.936]
[1770008502002,13.95455421,2245.7,2244.7,0.936]
[1770008503032,13.95455421,2245.7,2244.7,0.001]
[1770008508107,13.95455421,2245.7,2244.9,0.001]
[1770008508305,13.95565421,2245.7,2244.9,0.001]
[1770008508549,13.22640774,2245.5,2244.5,0.001]
[1770008508739,13.22640774,2245.3,2244.5,0.001]
[1770008508937,13.22640774,2245.3,2244.0,0.936]
[1770008510610,13.22640774,2245.3,2244.0,0.001]
[1770008511517,13.22640774,2245.3,2243.6,0.2335703]
[1770008511729,13.22640774,2245.3,2243.6,12.93444897]
[1770008511937,13.22640774,2245.1,2243.7,2.3907311]
[1770008516123,13.22640774,2245.1,2243.7,12.39241264]
[1770008516719,13.22640774,2245.1,2243.7,2.3907311]
[1770008519526,13.22640774,2245.1,2243.8,0.935]
[1770008519928,14.16140774,2245.1,2243.8,0.935]
[1770008520135,14.16140774,2245.1,2243.2,12.70187867]
[1770008520136,13.22640774,2244.9,2243.2,12.70187867]
[1770008520338,13.22640774,2244.9,2243.2,0.001]
[1770008520339,13.22640774,2244.7,2243.2,0.001]
[1770008520650,1.19707469,2244.9,2243.2,0.001]
[1770008520651,13.22640774,2244.3,2243.2,0.001]
[1770008521153,13.22640774,2244.3,2241.6,21.80899046]
[1770008521154,13.22640774,2244.0,2242.0,12.70087867]
[1770008521458,13.22640774,2243.8,2242.4,12.70087867]
[1770008521654,13.22640774,2243.8,2242.1,12.07853967]
[1770008521820,13.22640774,2243.8,2242.1,2.20508787]
[1770008522249,13.22640774,2243.8,2242.1,1.27008787]
[1770008522454,13.22640774,2243.8,2242.1,2.20508787]
[1770008522764,13.22640774,2243.8,2241.3,0.1225112]
[1770008522765,13.22640774,2243.2,2241.3,0.1225112]
[1770008522927,4.704,2243.3,2241.3,0.1225112]
[1770008522928,13.22640774,2242.9,2241.3,0.1225112]
[1770008524052,13.22640774,2242.9,2241.7,0.2335703]
[1770008524269,13.22640774,2242.9,2241.8,0.935]
[1770008524570,13.22640774,2242.9,2241.3,0.1225112]
[1770008524729,5.639,2243.1,2241.3,0.1225112]
[1770008524730,13.22640774,2242.6,2241.3,0.1225112]
[1770008524929,1.32264077,2242.8,2240.0,22.45369721]
[1770008524930,13.22640774,2242.2,2240.0,22.45369721]
[1770008525233,13.22640774,2242.2,2240.1,0.935]
[1770008525563,14.16140774,2242.1,2240.4,12.70087867]
[1770008525734,14.64254851,2242.0,2240.5,1.27008787]
[1770008526837,14.64254851,2242.0,2240.6,0.2335703]
[1770008527157,14.64254851,2242.0,2240.7,0.935]
[1770008527350,14.64254851,2242.0,2240.6,0.935]
[1770008529644,14.64254851,2242.0,2240.1,0.1024]
[1770008529837,12.9445003,2241.8,2240.5,0.1024]
[1770008530234,12.9445003,2241.8,2240.7,0.1024]
[1770008530656,12.9445003,2241.8,2240.6,0.936]
[1770008534244,12.9445003,2241.8,2240.6,0.937]
[1770008534554,12.9456003,2241.8,2240.6,0.937]
[1770008534752,12.9445003,2241.6,2240.6,0.937]
[1770008535573,0.0053989,2241.2,2240.7,22.48071943]
[1770008535865,0.0011,2241.8,2240.7,22.48071943]
[1770008536076,0.0011,2241.8,2240.8,9.54087156]
[1770008536379,0.0011,2242.0,2240.8,9.54087156]
[1770008536548,13.8805003,2242.6,2241.1,22.21525893]
[1770008536745,13.8805003,2242.6,2241.2,10.44928026]
[1770008536944,1.11418793,2243.8,2241.2,10.44928026]
[1770008536945,12.9445003,2243.0,2241.4,9.51328026]
[1770008537170,12.9445003,2243.0,2241.5,12.70087867]
[1770008537546,12.9445003,2243.0,2241.6,0.1024]
[1770008537770,12.9456003,2242.9,2241.6,0.1024]
[1770008537978,0.0011,2242.9,2241.7,14.5]
[1770008538284,0.0011,2242.9,2241.9,12.70087867]
[1770008538497,1.18327997,2244.8,2242.0,9.720637]
[1770008538775,2.40345817,2245.1,2242.0,9.720637]
[1770008538776,13.8805003,2244.7,2242.3,12.70087867]
[1770008539072,14.11318572,2244.7,2242.4,15.436]
[1770008539372,13.8805003,2244.7,2242.4,15.436]
[1770008539681,4.704,2244.4,2242.1,0.44835213]
[1770008539885,12.9445003,2243.8,2241.5,12.70087867]
[1770008540047,12.9445003,2243.6,2241.8,0.936]
[1770008540869,12.9445003,2243.6,2241.8,15.436]
[1770008541060,12.9445003,2243.4,2241.9,1.5436]
[1770008541842,12.9445003,2243.4,2241.0,22.0903091]
[1770008542047,12.9445003,2243.4,2241.1,0.936]
[1770008542356,12.9445003,2243.4,2241.1,15.436]
[1770008542756,4.704,2243.1,2241.1,0.936]
[1770008542954,12.9445003,2242.9,2241.1,0.936]
[1770008543151,12.9445003,2242.7,2241.1,0.936]
[1770008545249,12.9445003,2242.7,2241.2,0.2335703]
[1770008546102,12.9445003,2243.1,2241.4,12.70087867]
[1770008546290,12.9445003,2243.1,2241.2,0.3359703]
[1770008546577,12.9445003,2243.1,2241.4,12.70087867]
[1770008546793,12.9445003,2242.9,2241.5,1.27008787]
[1770008547085,12.9445003,2242.9,2241.2,0.3359703]
[1770008547258,12.9445003,2242.9,2241.2,0.2335703]
[1770008548669,12.9445003,2242.9,2241.3,0.001]
[1770008550168,0.95840551,2242.8,2241.3,0.001]
[1770008550367,13.8805003,2242.7,2241.3,0.001]
[1770008550664,12.9445003,2242.5,2241.3,0.001]
[1770008552360,1.38805003,2242.6,2241.3,0.2345703]
[1770008552559,0.936,2242.7,2241.3,9.39900531]
[1770008552761,13.8805003,2242.7,2241.3,9.39900531]
[1770008552960,13.8805003,2242.7,2241.3,0.001]
[1770008553196,1.38805003,2242.6,2241.3,0.2345703]
[1770008553369,0.936,2242.7,2241.3,0.73604274]
[1770008553572,12.9445003,2242.9,2241.5,0.2335703]
[1770008553775,12.9445003,2242.9,2241.7,0.2335703]
[1770008554107,12.9456003,2243.2,2241.4,12.70087867]
[1770008554389,12.9456003,2243.2,2241.5,0.2335703]
[1770008554600,12.9445003,2243.0,2241.5,2.02858764]
[1770008555101,12.9445003,2243.0,2241.5,1.5271152]
[1770008555270,12.9445003,2243.0,2241.7,0.2335703]
[1770008555472,12.9445003,2243.0,2241.6,0.2335703]
[1770008555863,12.9445003,2243.0,2241.5,1.2935449]
[1770008556061,12.9445003,2243.0,2241.4,12.70087867]
[1770008556062,14.36840633,2242.9,2241.6,1.39944236]
[1770008556674,14.36840633,2242.9,2241.7,0.936]
[1770008558295,14.36840633,2242.9,2241.6,1.39944236]
[1770008558498,14.36840633,2242.9,2241.5,0.936]
[1770008562309,14.36840633,2242.9,2241.3,9.73805885]
[1770008562606,14.36840633,2242.9,2241.7,0.001]
[1770008562790,12.57419924,2242.7,2241.7,0.001]
[1770008563168,0.0011,2242.7,2241.7,0.001]
[1770008563373,0.0011,2242.7,2241.8,9.16003013]
[1770008563582,0.0011,2243.2,2241.9,2.18619088]
[1770008563787,0.0011,2243.2,2242.1,21.60779292]
[1770008564077,0.0011,2243.2,2242.2,0.2335703]
[1770008565295,0.0011,2243.2,2242.3,14.5]
[1770008565616,12.57419924,2243.2,2242.3,14.5]
[1770008565773,13.83051916,2243.1,2242.3,0.936]
[1770008565973,13.83051916,2243.1,2241.7,0.001]
[1770008566171,12.57309924,2242.9,2241.7,0.001]
[1770008566478,12.57309924,2242.7,2241.7,0.001]
[1770008566679,13.75637921,2242.5,2241.0,0.51251414]
[1770008566977,12.57309924,2242.3,2241.2,0.936]
[1770008567173,13.24085523,2242.1,2241.2,0.936]
[1770008567383,13.24085523,2242.1,2241.0,0.51251414]
[1770008567589,13.24085523,2242.1,2241.0,0.001]
[1770008567790,2.40776388,2242.4,2241.0,0.001]
[1770008567791,13.24085523,2241.9,2241.0,0.001]
[1770008568089,13.24085523,2241.7,2241.0,0.001]
[1770008575402,13.24085523,2241.7,2240.1,0.936]
[1770008575600,13.24085523,2241.7,2240.2,0.2335703]
[1770008575818,13.24085523,2241.7,2241.2,0.001]
[1770008576017,0.0011,2241.5,2241.2,0.001]
[1770008578524,13.24195523,2241.5,2241.2,0.001]
[1770008578728,1.32419552,2241.4,2241.2,0.001]
[1770008579431,0.0011,2241.5,2241.2,0.001]
[1770008580551,13.24195523,2241.5,2241.2,0.001]
[1770008580915,13.24195523,2241.5,2239.5,20.36285263]
[1770008581110,13.24195523,2241.5,2240.0,0.936]
[1770008581327,13.24085523,2241.3,2240.0,0.936]
[1770008581650,13.24085523,2241.3,2238.7,0.23310387]
[1770008581651,13.24085523,2240.9,2238.7,0.23310387]
[1770008581847,1.19802515,2241.0,2238.7,0.23310387]
[1770008581848,14.43888038,2240.7,2238.7,0.23310387]
[1770008582060,13.24085523,2240.5,2238.3,8.57921491]
[1770008582262,13.24085523,2240.5,2238.2,26.26419618]
[1770008582263,13.24085523,2240.4,2239.0,11.76419618]
[1770008582544,13.24085523,2240.4,2238.3,8.57921491]
[1770008582734,13.24085523,2240.4,2238.2,26.26419618]
[1770008582916,13.24085523,2240.2,2238.2,14.5]
[1770008583122,13.24085523,2240.0,2238.3,1.5436]
[1770008583345,13.24085523,2240.0,2238.1,0.936]
[1770008583849,13.24085523,2240.0,2237.5,8.54089801]
[1770008584053,2.35583577,2240.1,2236.9,16.42424632]
[1770008584054,13.24085523,2239.8,2237.8,8.54089801]
[1770008584223,13.24085523,2240.5,2238.5,11.76419618]
[1770008584425,13.24085523,2240.3,2238.9,11.76419618]
[1770008584628,13.24085523,2240.3,2238.6,0.2335703]
[1770008584834,13.24085523,2240.3,2238.5,0.936]
[1770008585034,13.24085523,2240.1,2238.5,0.936]
[1770008586556,13.24085523,2240.1,2237.7,11.76419618]
[1770008586773,13.24085523,2239.7,2237.0,8.48529935]
[1770008587067,1.41768552,2240.2,2237.7,11.76419618]
[1770008587068,13.24085523,2239.5,2237.7,11.76419618]
[1770008587365,1.41778552,2239.4,2238.1,11.76419618]
[1770008587517,14.17785523,2239.9,2238.2,0.2335703]
[1770008587717,14.17785523,2239.9,2238.2,8.68278988]
[1770008588138,14.17785523,2239.9,2238.6,0.2335703]
[1770008588458,14.17785523,2239.9,2238.7,0.937]
[1770008588626,15.59564075,2239.9,2238.7,0.937]
[1770008589555,14.17785523,2239.9,2238.7,0.937]
[1770008589766,14.17785523,2239.9,2238.7,0.938]
[1770008591938,14.17785523,2239.9,2238.7,0.001]
[1770008592664,13.24085523,2239.9,2238.7,0.001]
[1770008596174,12.38425517,2240.3,2238.9,11.76419618]
[1770008596366,12.38425517,2240.1,2239.0,2.11341962]
[1770008596664,12.38425517,2240.1,2239.0,0.937]
[1770008597166,1.23853552,2240.2,2239.0,0.937]
[1770008597472,12.38535517,2240.4,2239.1,0.2335703]
[1770008597877,12.38535517,2240.4,2239.3,0.2335703]
[1770008598250,12.38535517,2240.4,2239.2,0.937]
[1770008598574,12.38535517,2240.4,2238.7,0.001]
[1770008598788,12.38535517,2240.4,2238.8,0.937]
[1770008598948,12.38425517,2240.2,2238.8,0.937]
[1770008599792,12.38425517,2240.0,2238.8,0.937]
[1770008599992,13.50033056,2240.0,2238.7,0.001]
[1770008600169,12.38425517,2239.8,2237.3,34.03181532]
[1770008600475,12.38425517,2239.6,2237.7,0.937]
[1770008600680,12.38425517,2239.4,2237.3,40.28349618]
[1770008600894,12.38425517,2239.2,2237.3,15.437]
[1770008601045,12.38425517,2239.2,2236.9,20.13602652]
[1770008601046,12.38425517,2239.2,2236.9,0.1225112]
[1770008601246,12.38425517,2239.0,2236.9,0.1225112]
[1770008601463,12.38425517,2238.8,2236.9,0.1225112]
[1770008601873,13.50094481,2238.8,2236.9,0.1225112]
[1770008602078,12.38425517,2238.6,2236.9,0.1225112]
[1770008602892,1.11668964,2238.8,2236.9,0.1225112]
[1770008602893,12.38425517,2238.4,2236.9,0.1225112]
[1770008603178,12.38425517,2238.2,2236.9,0.1225112]
[1770008603386,12.38425517,2238.2,2237.1,0.001]
[1770008604249,12.38425517,2238.2,2236.3,1.02720693]
[1770008604645,12.78547325,2238.2,2236.3,1.02720693]
[1770008604852,12.38425517,2238.0,2234.3,19.99852779]
[1770008605058,12.38425517,2237.5,2235.2,19.99852779]
[1770008605267,12.38425517,2237.5,2235.3,14.5]
[1770008605885,12.38425517,2237.5,2235.4,0.2335703]
[1770008606057,12.38425517,2237.3,2235.4,3.47320981]
[1770008606259,12.38425517,2237.1,2235.2,11.76419618]
[1770008606491,12.38425517,2237.1,2234.8,12.70119618]
[1770008606678,12.38425517,2237.1,2235.2,11.76419618]
[1770008606857,12.38425517,2237.1,2234.9,8.20622512]
[1770008607059,12.38425517,2237.1,2235.1,8.20622512]
[1770008607387,13.71638069,2237.0,2235.3,11.76419618]
[1770008607687,13.71638069,2237.0,2235.4,8.19235769]
[1770008607893,13.71638069,2237.0,2235.3,0.938]
[1770008608255,14.83395564,2237.0,2235.3,0.938]
[1770008608457,13.71638069,2237.0,2234.7,11.76419618]
[1770008608684,12.38425517,2236.8,2234.9,2.57834962]
[1770008609194,12.38425517,2236.8,2234.7,11.76419618]
[1770008609366,12.38425517,2236.7,2235.2,0.2335703]
[1770008609566,12.38425517,2236.7,2235.4,0.2335703]
[1770008609767,1.48339258,2236.9,2235.6,0.2335703]
[1770008609972,12.38425517,2237.5,2235.6,0.2335703]
[1770008610365,12.38425517,2237.5,2235.4,0.2335703]
[1770008610892,12.38425517,2237.5,2235.6,0.2335703]
[1770008611389,12.38425517,2237.5,2235.4,0.2335703]
[1770008611690,12.38425517,2237.3,2235.4,0.2335703]
[1770008611858,12.38425517,2237.1,2235.4,0.2335703]
[1770008612065,1.33222552,2237.2,2235.9,0.2335703]
[1770008612395,0.938,2237.3,2236.0,0.938]
[1770008612396,13.32225517,2237.3,2236.0,0.938]
[1770008612892,13.32225517,2237.3,2235.4,11.76419618]
[1770008613395,13.32225517,2237.3,2235.5,14.7335703]
[1770008615896,13.32225517,2237.3,2236.2,0.001]
[1770008628125,13.32225517,2237.3,2236.0,0.001]
[1770008628126,11.94015492,2237.1,2236.0,0.001]
[1770008628298,11.94015492,2236.9,2236.0,0.001]
[1770008629306,11.94015492,2236.7,2236.0,0.001]
[1770008629526,12.87815492,2236.7,2236.0,0.001]
[1770008630122,11.94015492,2236.5,2235.0,26.26419618]
[1770008630325,11.94015492,2236.3,2234.5,11.76419618]
[1770008630528,7.2305515,2236.7,2234.7,12.80578902]
[1770008630529,13.23031377,2236.2,2234.7,12.80578902]
[1770008630727,11.94015492,2236.2,2234.7,27.30578902]
[1770008630936,11.94015492,2236.2,2234.7,14.5]
[1770008631225,11.94015492,2236.2,2235.3,0.001]
[1770008631522,11.94015492,2236.0,2235.3,0.001]
[1770008631832,1.28781549,2235.9,2235.3,0.001]
[1770008632039,0.938,2236.1,2235.3,0.001]
[1770008632916,11.94015492,2236.4,2235.3,0.001]
[1770008634310,0.0059518,2236.3,2235.3,0.001]
[1770008636127,11.94610672,2236.3,2235.3,0.001]
[1770008637226,11.94015492,2236.1,2235.3,0.001]
[1770008637405,1.29042518,2236.0,2235.3,0.001]
[1770008638529,13.2305801,2236.0,2235.3,0.001]
[1770008640205,0.0059518,2236.3,2235.3,0.001]
[1770008640403,0.0059518,2236.3,2235.3,8.98013013]
[1770008640604,0.939,2237.0,2235.6,20.59695928]
[1770008640804,0.0011,2237.1,2235.6,20.59695928]
[1770008641136,0.0011,2237.1,2235.3,1.1735703]
[1770008641137,1.20475475,2237.6,2236.1,7.79117026]
[1770008641434,11.94015492,2238.0,2236.4,12.80578902]
[1770008641609,1.60707283,2238.2,2236.5,14.5]
[1770008641610,11.94015492,2237.8,2236.5,14.5]
[1770008642135,11.94015492,2237.8,2236.2,2.99869593]
[1770008642334,11.94015492,2237.8,2236.3,0.2335703]
[1770008642632,11.94015492,2238.1,2236.7,12.80578902]
[1770008642842,13.17440222,2238.1,2236.8,0.7400965]
[1770008643410,13.17440222,2238.1,2236.5,0.938]
[1770008643934,11.94015492,2237.8,2236.5,0.938]
[1770008645040,0.0011,2237.9,2236.7,12.80578902]
[1770008645623,0.0011,2237.9,2236.7,20.5494916]
[1770008645839,0.0011,2238.1,2237.2,0.2335703]
[1770008646049,0.0011,2238.8,2237.6,0.2335703]
[1770008646202,11.94125492,2238.8,2237.3,0.938]
[1770008646416,11.94125492,2238.8,2237.4,0.2335703]